bitfinex/quotes_BTCUSD_20250110
["timestamp","ask_amount","ask_price","bid_price","bid_amount"]
[1736529533994,0.213113,93847.0,93838.0,0.00014587]
[1736529534240,0.213122,93843.0,93838.0,0.00014587]
[1736529534484,0.023,93854.0,93838.0,0.00014587]
[1736529534688,0.213131,93839.0,93838.0,0.00014587]
[1736529535440,0.213131,93839.0,93838.0,0.00614587]
[1736529535657,0.213131,93839.0,93838.0,0.00014587]
[1736529535897,0.213131,93839.0,93838.0,0.00414587]
[1736529536608,0.213124,93842.0,93838.0,0.00414587]
[1736529537298,0.213124,93842.0,93838.0,0.00014587]
[1736529537529,0.426249,93842.0,93838.0,0.00014587]
[1736529537794,0.426249,93842.0,93838.0,0.00314587]
[1736529538267,0.426249,93842.0,93838.0,0.00014587]
[1736529538690,0.213124,93842.0,93838.0,0.00414587]
[1736529538881,0.213127,93841.0,93838.0,0.00414587]
[1736529539022,0.426254,93841.0,93838.0,0.00414587]
[1736529540482,0.426254,93841.0,93838.0,0.00014587]
[1736529540890,0.236131,93839.0,93838.0,0.00014587]
[1736529541491,0.236131,93839.0,93838.0,0.00314587]
[1736529541705,0.236131,93839.0,93838.0,0.00014587]
[1736529542090,0.236131,93839.0,93838.0,0.00314587]
[1736529542293,0.001,93839.0,93838.0,0.00014587]
[1736529542496,0.001,93839.0,93838.0,0.23031123]
[1736529542697,0.001,93839.0,93838.0,0.22924563]
[1736529542919,0.001,93839.0,93838.0,1.72924563]
[1736529543479,0.0005,93839.0,93838.0,1.72924563]
[1736529543675,8.53e-05,93857.0,93839.0,0.639393]
[1736529543880,8.53e-05,93857.0,93840.0,0.10536519]
[1736529544085,8.53e-05,93857.0,93853.0,0.213098]
[1736529545476,8.53e-05,93857.0,93853.0,0.428196]
[1736529545690,8.53e-05,93857.0,93853.0,0.437196]
[1736529545897,8.53e-05,93857.0,93855.0,0.213094]
[1736529546095,8.53e-05,93857.0,93856.0,0.10429976]
[1736529548390,8.53e-05,93857.0,93856.0,0.10629976]
[1736529549039,8.53e-05,93857.0,93856.0,0.19479976]
[1736529549212,8.53e-05,93857.0,93856.0,0.24009976]
[1736529550039,8.53e-05,93857.0,93856.0,0.24885976]
[1736529550662,8.53e-05,93857.0,93856.0,0.25975114]
[1736529551569,8.53e-05,93857.0,93856.0,0.43076248]
[1736529551771,8.53e-05,93857.0,93856.0,0.53076248]
[1736529552315,8.53e-05,93857.0,93856.0,0.43076248]
[1736529552602,8.53e-05,93857.0,93856.0,0.28076248]
[1736529553157,8.53e-05,93857.0,93856.0,0.43076248]
[1736529553922,8.53e-05,93857.0,93856.0,0.28076248]
[1736529555307,8.53e-05,93857.0,93856.0,0.27200248]
[1736529555468,8.53e-05,93857.0,93856.0,0.28076248]
[1736529556826,8.53e-05,93857.0,93856.0,0.2611111]
[1736529557031,8.53e-05,93857.0,93856.0,0.2698711]
[1736529557964,8.53e-05,93857.0,93856.0,0.2611111]
[1736529558350,0.0142752,93878.0,93864.0,0.213072]
[1736529558351,0.213044,93877.0,93864.0,0.213072]
[1736529558526,0.21305,93875.0,93864.0,0.213072]
[1736529559146,0.236044,93877.0,93856.0,0.03201134]
[1736529559349,0.213072,93865.0,93856.0,0.03201134]
[1736529559760,0.213064,93869.0,93857.0,0.21309]
[1736529560170,0.213074,93865.0,93856.0,0.02301134]
[1736529560368,0.213074,93865.0,93856.0,0.02101134]
[1736529560572,0.213079,93862.0,93849.0,0.213107]
[1736529560766,0.173,93875.0,93849.0,0.31740676]
[1736529561073,0.173,93875.0,93850.0,0.31740576]
[1736529561285,0.173,93875.0,93864.0,0.001]
[1736529561286,0.173,93873.0,93864.0,0.001]
[1736529561475,0.0009889,93876.0,93850.0,0.10429976]
[1736529561677,0.0009889,93876.0,93851.0,0.00106535]
[1736529561903,0.0009889,93876.0,93852.0,0.31740076]
[1736529562109,0.0009889,93876.0,93859.0,0.213084]
[1736529562328,0.0095309,93878.0,93861.0,0.213081]
[1736529562523,0.213066,93868.0,93864.0,0.002]
[1736529562730,0.426132,93868.0,93853.0,0.213097]
[1736529562923,0.0095309,93878.0,93851.0,0.213103]
[1736529562924,0.213075,93864.0,93851.0,0.213103]
[1736529563306,0.0095309,93878.0,93852.0,0.009]
[1736529563307,0.023,93875.0,93852.0,0.009]
[1736529563564,0.173,93855.0,93852.0,0.009]
[1736529563798,0.173,93853.0,93852.0,0.009]
[1736529564598,0.023,93851.0,93831.0,0.213148]
[1736529564794,0.213119,93845.0,93834.0,0.21314]
[1736529565202,0.213108,93850.0,93839.0,0.213131]
[1736529565342,0.213114,93847.0,93838.0,0.10444563]
[1736529565542,0.15,93860.0,93838.0,0.10444563]
[1736529565543,0.213088,93858.0,93839.0,0.10429976]
[1736529565747,0.213081,93861.0,93849.0,0.213107]
[1736529565949,0.213085,93859.0,93849.0,0.213107]
[1736529566375,0.213094,93855.0,93846.0,0.213115]
[1736529566665,0.213094,93855.0,93846.0,0.10429976]
[1736529566867,0.213085,93859.0,93846.0,0.10429976]
[1736529566868,0.213085,93859.0,93846.0,0.31741176]
[1736529567343,0.213068,93867.0,93854.0,0.213094]
[1736529567572,0.213077,93863.0,93847.0,0.10429976]
[1736529567751,0.213079,93862.0,93848.0,0.21311]
[1736529568007,0.213075,93864.0,93852.0,0.213099]
[1736529568181,0.213076,93863.0,93852.0,0.213099]
[1736529568383,0.0009862,93868.0,93860.0,0.213081]
[1736529568596,0.0009862,93868.0,93855.0,0.426188]
[1736529568810,0.213048,93876.0,93861.0,0.10429976]
[1736529569014,0.0009994,93877.0,93868.0,0.213064]
[1736529569222,0.0009994,93877.0,93864.0,0.213073]
[1736529569430,0.22375142,93880.0,93864.0,0.213073]
[1736529569852,0.01071142,93880.0,93864.0,0.213073]
[1736529570071,0.01071142,93880.0,93862.0,0.213077]
[1736529570072,0.213055,93873.0,93862.0,0.213077]
[1736529570277,0.236044,93877.0,93857.0,0.23444999]
[1736529570483,0.01001686,93878.0,93861.0,0.213079]
[1736529570689,0.213061,93870.0,93861.0,0.213079]
[1736529571112,0.21306,93870.0,93861.0,0.213079]
[1736529571544,0.21306,93870.0,93864.0,0.006]
[1736529571942,0.21306,93870.0,93861.0,0.213079]
[1736529572146,0.213051,93874.0,93861.0,0.222079]
[1736529572373,0.21306,93870.0,93861.0,0.222079]
[1736529572530,0.21306,93870.0,93861.0,0.215079]
[1736529572731,0.42612,93870.0,93864.0,0.009]
[1736529572933,0.213071,93866.0,93864.0,0.009]
[1736529573135,0.213071,93866.0,93861.0,0.002]
[1736529573333,0.213062,93869.0,93861.0,0.002]
[1736529573742,0.01001686,93878.0,93862.0,0.213078]
[1736529573928,0.01001686,93878.0,93875.0,0.213047]
[1736529574130,0.01001686,93878.0,93875.0,0.426095]
[1736529575172,0.01001686,93878.0,93877.0,0.213044]
[1736529575448,0.01001686,93878.0,93877.0,0.31734376]
[1736529575655,0.01001686,93878.0,93877.0,0.36664376]
[1736529576492,0.01001686,93878.0,93877.0,0.3968376]
[1736529576967,0.00152704,93878.0,93877.0,0.7294376]
[1736529577176,8.53e-05,93886.0,93877.0,0.7294376]
[1736529577177,8.53e-05,93886.0,93885.0,0.213026]
[1736529577351,8.53e-05,93886.0,93885.0,0.44572576]
[1736529577588,0.00023103,93886.0,93885.0,2.08740675]
[1736529577792,8.53e-05,93895.0,93889.0,0.09999926]
[1736529577996,8.53e-05,93895.0,93894.0,0.31730576]
[1736529578212,0.212927,93929.0,93894.0,0.31730576]
[1736529578213,0.15,93928.0,93894.0,0.31730576]
[1736529578418,0.01147395,93932.0,93905.0,0.212981]
[1736529578601,0.212927,93929.0,93905.0,0.31728076]
[1736529578858,0.0009983,93932.0,93905.0,0.18149976]
[1736529579080,8.52e-05,93968.0,93930.0,0.15]
[1736529579290,8.52e-05,93968.0,93940.0,0.362901]
[1736529579502,8.52e-05,93968.0,93948.0,0.212883]
[1736529579711,0.00023096,93949.0,93948.0,0.31718276]
[1736529580134,6.981e-05,93949.0,93948.0,0.31718276]
[1736529580349,6.981e-05,93949.0,93948.0,0.212883]
[1736529580568,6.981e-05,93949.0,93929.0,0.0106577]
[1736529580782,6.981e-05,93949.0,93930.0,0.10429976]
[1736529580994,6.981e-05,93949.0,93928.0,0.049]
[1736529581205,0.15,93948.0,93923.0,0.212938]
[1736529581412,0.425813,93938.0,93923.0,0.212938]
[1736529581618,0.212906,93938.0,93923.0,0.212938]
[1736529582243,0.212918,93933.0,93918.0,0.21295]
[1736529582495,0.212918,93933.0,93920.0,0.212947]
[1736529582690,0.212918,93933.0,93920.0,0.10429976]
[1736529582905,0.212929,93928.0,93920.0,0.10429976]
[1736529583135,0.212929,93928.0,93914.0,0.21296]
[1736529583340,0.212919,93932.0,93923.0,0.005]
[1736529583773,0.212919,93932.0,93919.0,0.212947]
[1736529583987,0.212908,93937.0,93920.0,0.11129976]
[1736529584191,0.212908,93937.0,93923.0,0.001]
[1736529584427,0.01072264,93939.0,93923.0,0.001]
[1736529584428,0.023,93938.0,93923.0,0.001]
[1736529584630,0.212935,93926.0,93909.0,0.221731]
[1736529584839,0.212935,93926.0,93913.0,0.212963]
[1736529585014,0.212935,93926.0,93919.0,0.001]
[1736529585221,0.42587,93926.0,93919.0,0.001]
[1736529585516,0.15,93946.0,93919.0,0.001]
[1736529585517,0.212946,93921.0,93919.0,0.001]
[1736529585891,0.21296,93915.0,93898.0,0.02086582]
[1736529586116,0.21296,93915.0,93903.0,0.212985]
[1736529586287,0.023,93920.0,93919.0,0.005]
[1736529586735,0.207967,93912.0,93897.0,0.212999]
[1736529586987,0.207967,93912.0,93896.0,0.0455]
[1736529587182,0.420934,93912.0,93896.0,0.1498757]
[1736529587801,0.212976,93907.0,93896.0,0.1498757]
[1736529588211,0.212989,93902.0,93896.0,0.04557594]
[1736529588419,0.023,93913.0,93896.0,7.594e-05]
[1736529588641,0.212999,93897.0,93896.0,7.594e-05]
[1736529589062,0.212995,93899.0,93896.0,7.594e-05]
[1736529589254,0.212979,93906.0,93896.0,7.594e-05]
[1736529589255,0.21299,93902.0,93896.0,7.594e-05]
[1736529589457,0.00876,93932.0,93897.0,0.10429976]
[1736529589668,0.212948,93920.0,93898.0,0.212997]
[1736529589875,0.212958,93916.0,93899.0,0.31729376]
[1736529590288,0.212958,93915.0,93904.0,0.212982]
[1736529590501,0.212937,93925.0,93904.0,0.212982]
[1736529590673,0.212959,93915.0,93904.0,0.212982]
[1736529592153,0.212959,93915.0,93900.0,0.212992]
[1736529592154,0.21296,93915.0,93896.0,7.594e-05]
[1736529592507,0.212951,93919.0,93907.0,0.212975]
[1736529592641,0.15,93936.0,93896.0,7.594e-05]
[1736529592642,0.212929,93928.0,93908.0,0.10429976]
[1736529592874,0.212913,93935.0,93910.0,0.425938]
[1736529593076,0.212913,93935.0,93909.0,0.0479]
[1736529593077,0.212913,93935.0,93911.0,0.10536448]
[1736529593307,0.212923,93931.0,93919.0,0.212948]
[1736529593955,0.212913,93935.0,93919.0,0.212948]
[1736529594600,0.212923,93931.0,93919.0,0.212948]
[1736529594819,0.212923,93931.0,93921.0,0.212944]
[1736529595035,0.15,93948.0,93909.0,0.0479]
[1736529595036,0.15,93946.0,93922.0,0.10429976]
[1736529595237,0.212909,93937.0,93923.0,0.21294]
[1736529595469,0.212916,93934.0,93924.0,0.10429976]
[1736529595703,0.212904,93939.0,93924.0,0.10429976]
[1736529596113,0.15,93940.0,93924.0,0.10429976]
[1736529596114,0.212915,93935.0,93924.0,0.10429976]
[1736529596309,0.212906,93938.0,93919.0,0.212947]
[1736529596310,0.212923,93931.0,93919.0,0.212947]
[1736529596585,0.023,93937.0,93914.0,0.21296]
[1736529596784,0.023,93935.0,93909.0,0.26087]
[1736529596962,0.212945,93921.0,93911.0,0.02135287]
[1736529597163,0.212945,93921.0,93909.0,0.0479]
[1736529597164,0.212947,93920.0,93909.0,0.0479]
[1736529597366,0.21296,93915.0,93909.0,0.0479]
[1736529597798,0.023,93928.0,93909.0,0.0479]
[1736529598014,0.212945,93921.0,93909.0,0.0479]
[1736529598845,0.212924,93931.0,93910.0,0.10429976]
[1736529599029,0.212923,93931.0,93916.0,0.212954]
[1736529599235,0.212923,93931.0,93916.0,0.10429976]
[1736529599443,0.15,93933.0,93920.0,0.212945]
[1736529599593,0.212919,93932.0,93920.0,0.212945]
[1736529599803,0.212919,93932.0,93917.0,0.212953]
[1736529600181,0.21293,93928.0,93917.0,0.212953]
[1736529600390,0.21293,93928.0,93913.0,0.212962]
[1736529600601,0.212942,93922.0,93909.0,0.0479]
[1736529600802,0.212933,93926.0,93920.0,0.004]
[1736529600977,0.212933,93926.0,93912.0,0.212964]
[1736529601185,0.21292,93932.0,93913.0,0.10429976]
[1736529601382,0.212895,93943.0,93913.0,0.10429976]
[1736529601543,0.212889,93946.0,93913.0,0.10536437]
[1736529601742,0.15,93949.0,93913.0,0.10536437]
[1736529601963,0.212885,93947.0,93931.0,0.212921]
[1736529602227,0.212896,93943.0,93931.0,0.212921]
[1736529602384,0.21289,93945.0,93929.0,0.212924]
[1736529602566,0.21289,93945.0,93930.0,0.31722376]
[1736529603119,0.42578,93945.0,93930.0,0.3172997]
[1736529603326,0.21289,93945.0,93930.0,0.3172997]
[1736529603700,0.21289,93945.0,93934.0,0.212914]
[1736529604112,0.21289,93945.0,93930.0,0.3172997]
[1736529604439,0.212881,93949.0,93930.0,0.1093757]
[1736529604816,0.212879,93950.0,93939.0,0.212902]
[1736529605771,0.212879,93950.0,93937.0,0.262408]
[1736529605956,8.52e-05,93951.0,93941.0,0.212897]
[1736529606206,8.52e-05,93951.0,93942.0,0.10429976]
[1736529606446,8.52e-05,93951.0,93950.0,0.0801]
[1736529606654,8.52e-05,93951.0,93950.0,0.18546402]
[1736529607064,8.52e-05,93951.0,93950.0,0.23156402]
[1736529607269,8.52e-05,93951.0,93950.0,0.25154604]
[1736529607885,8.52e-05,93951.0,93950.0,0.27124174]
[1736529608436,8.52e-05,93953.0,93951.0,0.15]
[1736529608644,8.52e-05,93953.0,93952.0,0.25536385]
[1736529608847,8.52e-05,93972.0,93967.0,0.21284]
[1736529609065,8.52e-05,93972.0,93967.0,0.31713976]
[1736529609899,8.52e-05,93972.0,93967.0,0.59483976]
[1736529610110,8.52e-05,93972.0,93967.0,0.79483902]
[1736529610321,8.52e-05,93972.0,93971.0,0.212831]
[1736529610539,8.52e-05,93972.0,93971.0,1.81713076]
[1736529611147,8.52e-05,93972.0,93971.0,2.06713002]
[1736529611362,8.52e-05,93989.0,93986.0,0.212797]
[1736529611564,8.52e-05,93989.0,93986.0,0.31709676]
[1736529611565,0.00057102,93987.0,93986.0,0.31709676]
[1736529611777,0.00057102,93987.0,93986.0,0.59259676]
[1736529612193,0.00057102,93987.0,93986.0,0.69259676]
[1736529612396,0.00057102,93987.0,93986.0,0.79259602]
[1736529612597,0.00057102,93987.0,93986.0,0.69259676]
[1736529612808,8.603e-05,94002.0,94001.0,0.212763]
[1736529613016,0.00023165,94002.0,94001.0,0.31706276]
[1736529614041,0.00023165,94002.0,94001.0,0.32606276]
[1736529614248,0.00023165,94002.0,94001.0,0.31706276]
[1736529614661,0.00023165,94002.0,94001.0,0.32606276]
[1736529615473,0.00023165,94002.0,94001.0,0.35115543]
[1736529615680,0.212678,94039.0,94001.0,0.35115543]
[1736529615681,0.20721597,94039.0,94025.0,0.212708]
[1736529615889,0.00014554,94037.0,94026.0,0.10429976]
[1736529616088,0.212684,94036.0,94026.0,0.10429976]
[1736529616290,0.00014554,94037.0,94027.0,0.00106341]
[1736529616495,0.00014554,94037.0,94028.0,0.10429976]
[1736529616726,0.00014554,94037.0,94034.0,0.212688]
[1736529616934,0.00014554,94037.0,94036.0,0.212684]
[1736529617142,0.00014554,94037.0,94036.0,0.10429976]
[1736529617364,0.00014554,94037.0,94034.0,0.425374]
[1736529617567,0.00014554,94037.0,94036.0,0.10429976]
[1736529618002,0.00014554,94037.0,94036.0,0.10536299]
[1736529618623,0.00014554,94037.0,94036.0,0.10429976]
[1736529620105,0.00014554,94037.0,94036.0,0.10529976]
[1736529620756,0.00014554,94037.0,94036.0,0.11229976]
[1736529622454,0.00014554,94037.0,94036.0,0.008]
[1736529623087,0.00014554,94037.0,94036.0,0.007]
[1736529623506,0.00014554,94037.0,94036.0,0.11129976]
[1736529623709,0.00014554,94037.0,94036.0,0.10429976]
[1736529623917,0.00014554,94037.0,94036.0,0.10536307]
[1736529624172,0.00014554,94037.0,94036.0,0.11536307]
[1736529624379,0.212623,94063.0,94037.0,0.638046]
[1736529624590,0.212586,94080.0,94044.0,0.212666]
[1736529624837,0.212586,94080.0,94044.0,0.31696576]
[1736529625246,0.0829,94091.0,94044.0,0.31696576]
[1736529625470,0.21255,94096.0,94044.0,0.41696576]
[1736529625678,0.15,94095.0,94044.0,2.03065994]
[1736529625912,0.21255,94096.0,94044.0,2.03065994]
[1736529626131,0.212598,94074.0,94044.0,2.03065994]
[1736529626279,0.212608,94070.0,94044.0,2.03065994]
[1736529626480,0.212598,94074.0,94044.0,1.93065994]
[1736529626680,0.212611,94069.0,94044.0,1.94237994]
[1736529626916,0.212628,94061.0,94044.0,1.94237994]
[1736529627214,0.212628,94061.0,94044.0,0.4286522]
[1736529627426,0.212638,94057.0,94044.0,0.41628576]
[1736529627549,0.212638,94057.0,94044.0,0.39856576]
[1736529627749,0.212628,94061.0,94044.0,0.39856576]
[1736529627965,0.22296974,94069.0,94044.0,0.40756576]
[1736529628171,0.15,94063.0,94044.0,0.39856576]
[1736529628602,0.15,94063.0,94044.0,0.41456576]
[1736529628809,0.212633,94059.0,94044.0,0.19289976]
[1736529629223,0.212642,94055.0,94044.0,0.009]
[1736529629395,0.2127492,94045.0,94044.0,0.009]
[1736529629595,8.52e-05,94045.0,94044.0,0.014]
[1736529629798,0.2127492,94045.0,94044.0,0.014]
[1736529630030,0.3627492,94045.0,94044.0,0.014]
[1736529630198,0.3627492,94045.0,94044.0,0.009]
[1736529630399,0.56954896,94045.0,94044.0,0.009]
[1736529630600,0.023,94041.0,94011.0,0.02181481]
[1736529630799,8.52e-05,94045.0,94044.0,0.004]
[1736529631297,8.52e-05,94045.0,94013.0,0.212736]
[1736529631499,0.212714,94023.0,94014.0,0.10429976]
[1736529632006,0.15,94041.0,94014.0,0.10429976]
[1736529632007,0.0027048,94022.0,94014.0,0.10429976]
[1736529632214,0.0027048,94022.0,94015.0,0.212732]
[1736529632371,0.212708,94026.0,94016.0,0.10429976]
[1736529632571,0.15,94029.0,94014.0,0.00014554]
[1736529632572,0.15,94020.0,94014.0,0.00014554]
[1736529632782,0.212732,94015.0,94014.0,0.00014554]
[1736529632982,0.15,94018.0,94014.0,0.00014554]
[1736529633217,0.212694,94032.0,94014.0,0.00114554]
[1736529633562,0.00291239,94031.0,94016.0,0.212729]
[1736529633764,0.21560839,94031.0,94017.0,0.10429976]
[1736529633965,0.212696,94031.0,94017.0,0.10429976]
[1736529634178,0.00270319,94030.0,94017.0,0.1053633]
[1736529634383,0.00270319,94030.0,94026.0,0.212706]
[1736529634553,0.212682,94038.0,94027.0,0.10429976]
[1736529634967,0.0029053,94037.0,94018.0,0.0757]
[1736529635304,0.0029053,94037.0,94031.0,0.212695]
[1736529635519,8.52e-05,94045.0,94035.0,0.212685]
[1736529635742,8.52e-05,94045.0,94036.0,0.10536299]
[1736529636121,0.00272323,94044.0,94036.0,0.10536299]
[1736529636335,0.00272323,94044.0,94036.0,0.10429976]
[1736529636532,0.212668,94043.0,94036.0,0.10429976]
[1736529636735,0.21538688,94043.0,94036.0,0.10429976]
[1736529636956,0.00271888,94043.0,94036.0,0.10429976]
[1736529637335,8.52e-05,94045.0,94037.0,0.212681]
[1736529637538,0.00271888,94042.0,94038.0,0.31697876]
[1736529637739,8.52e-05,94045.0,94038.0,0.31697876]
[1736529638483,8.52e-05,94045.0,94042.0,0.212669]
[1736529638658,8.52e-05,94045.0,94043.0,0.10429976]
[1736529638873,8.52e-05,94045.0,94036.0,0.001]
[1736529639044,0.00271626,94044.0,94037.0,0.10429976]
[1736529639475,0.21538226,94044.0,94037.0,0.10429976]
[1736529639909,0.00271626,94044.0,94037.0,0.10429976]
[1736529640097,0.00271626,94044.0,94037.0,0.10529976]
[1736529640298,0.00271626,94044.0,94039.0,0.212677]
[1736529640498,8.52e-05,94045.0,94041.0,0.212673]
[1736529640731,8.52e-05,94045.0,94042.0,0.10429976]
[1736529640910,8.52e-05,94045.0,94037.0,0.001]
[1736529641126,0.425333,94044.0,94037.0,0.008]
[1736529641337,0.425333,94044.0,94038.0,0.10429976]
[1736529641537,0.00270324,94043.0,94038.0,0.10429976]
[1736529641774,0.00270324,94043.0,94041.0,0.002]
[1736529642183,0.00270324,94043.0,94041.0,0.01]
[1736529642821,0.00270324,94043.0,94042.0,0.17949976]
[1736529643267,8.52e-05,94045.0,94042.0,0.17949976]
[1736529643470,8.52e-05,94045.0,94043.0,0.212668]
[1736529643678,8.52e-05,94045.0,94044.0,0.10429976]
[1736529644546,8.52e-05,94045.0,94044.0,0.1370693]
[1736529644749,0.00278968,94045.0,94044.0,0.3497353]
[1736529644949,8.52e-05,94045.0,94044.0,0.3497353]
[1736529645368,8.52e-05,94045.0,94044.0,0.3954353]
[1736529645693,8.52e-05,94045.0,94044.0,0.1827693]
[1736529646126,8.52e-05,94045.0,94044.0,0.3954353]
[1736529646341,8.52e-05,94045.0,94044.0,0.1827693]
[1736529646558,8.52e-05,94045.0,94044.0,0.1370693]
[1736529646771,0.3627492,94045.0,94044.0,0.011]
[1736529646991,0.36545883,94045.0,94044.0,0.011]
[1736529647193,0.36545883,94045.0,94044.0,0.002]
[1736529647412,0.212698,94030.0,94018.0,0.212725]
[1736529647615,0.00269513,94029.0,94019.0,0.1381865]
[1736529647830,0.212666,94044.0,94019.0,0.1381865]
[1736529647831,0.212666,94044.0,94025.0,0.212707]
[1736529648036,0.00269512,94043.0,94027.0,0.212704]
[1736529648248,8.52e-05,94045.0,94028.0,0.13712301]
[1736529648451,8.52e-05,94045.0,94029.0,0.03282325]
[1736529648452,0.00269512,94044.0,94029.0,0.03282325]
[1736529648666,0.00269512,94044.0,94017.0,0.00014554]
[1736529648667,0.212708,94026.0,94019.0,0.008]
[1736529648875,0.00292953,94025.0,94020.0,0.13713906]
[1736529649096,0.00292953,94025.0,94020.0,0.10429976]
[1736529649303,0.212715,94023.0,94021.0,0.03284078]
[1736529649503,0.212715,94023.0,94019.0,0.008]
[1736529649504,0.212715,94023.0,94022.0,0.03284078]
[1736529649716,0.212671,94042.0,94019.0,0.008]
[1736529649717,0.212716,94022.0,94019.0,0.008]
[1736529650162,0.023,94018.0,94017.0,0.00014554]
[1736529650361,0.49002476,94018.0,94017.0,0.00014554]
[1736529651018,0.69002476,94018.0,94017.0,0.00014554]
[1736529651231,0.362768,93999.0,93998.0,0.0001704]
[1736529651640,0.385768,93999.0,93998.0,0.0001704]
[1736529652659,0.38855638,93999.0,93998.0,0.0001704]
[1736529652866,0.38855638,93999.0,93998.0,0.0011704]
[1736529653510,0.38855638,93999.0,93998.0,0.0091704]
[1736529653717,0.38855638,93999.0,93998.0,0.0011704]
[1736529654058,0.38855638,93999.0,93998.0,0.0021704]
[1736529654490,0.38855638,93999.0,93998.0,0.0011704]
[1736529656278,0.39910556,93999.0,93998.0,0.0011704]
[1736529656685,0.21555638,93999.0,93998.0,0.0011704]
[1736529657894,0.00288157,93999.0,93998.0,0.0011704]
[1736529658186,0.1,94041.0,93999.0,0.0453]
[1736529658361,0.00014544,94031.0,94000.0,0.10429976]
[1736529658563,0.21273,94016.0,94005.0,0.212754]
[1736529658780,0.15,94025.0,94006.0,1.60536341]
[1736529658979,0.00014544,94031.0,94022.0,0.212714]
[1736529659174,0.00014544,94031.0,94023.0,0.10429976]
[1736529659940,0.00014544,94031.0,94030.0,0.212698]
[1736529660146,0.00014544,94031.0,94030.0,0.10429976]
[1736529660561,0.00014544,94031.0,94030.0,0.15166303]
[1736529660752,0.00014544,94031.0,94030.0,0.15059976]
[1736529661171,0.00014544,94031.0,94021.0,0.212718]
[1736529661382,0.00014544,94031.0,94023.0,0.212713]
[1736529661612,0.00014544,94031.0,94024.0,0.10429976]
[1736529662008,0.00014544,94031.0,94030.0,0.009]
[1736529662217,0.00014544,94031.0,94030.0,0.10536299]
[1736529662427,0.00014544,94031.0,94030.0,0.10429976]
[1736529662782,0.00014544,94031.0,94030.0,0.23556299]
[1736529662989,0.00014544,94031.0,94030.0,0.23449976]
[1736529663190,0.00014544,94031.0,94030.0,1.73449976]
[1736529663627,0.0001252,94045.0,94044.0,0.212666]
[1736529663830,0.0001252,94045.0,94044.0,0.32568576]
[1736529664824,0.0001252,94045.0,94044.0,0.42568502]
[1736529665352,0.0001252,94045.0,94044.0,0.43468502]
[1736529665532,0.0001252,94045.0,94044.0,0.42568502]
[1736529665945,0.0001252,94045.0,94044.0,0.43468502]
[1736529666077,0.0001252,94045.0,94044.0,1.83068576]
[1736529666289,0.0001252,94045.0,94044.0,1.85241811]
[1736529667345,4e-05,94045.0,94044.0,1.85241811]
[1736529667623,0.212564,94089.0,94061.0,0.212627]
[1736529667793,0.00023072,94062.0,94061.0,0.31692676]
[1736529668695,0.00023072,94062.0,94061.0,1.81692676]
[1736529668905,0.00023072,94062.0,94061.0,0.31692676]
[1736529669601,0.00023072,94062.0,94061.0,0.33192676]
[1736529670285,0.00023072,94062.0,94061.0,0.34064676]
[1736529670700,0.00023072,94062.0,94061.0,0.33164676]
[1736529670922,0.00023072,94062.0,94061.0,0.32564676]
[1736529671152,0.00023072,94062.0,94061.0,0.33964676]
[1736529671351,0.00023072,94062.0,94061.0,0.33064676]
[1736529671758,0.00023072,94062.0,94061.0,0.33964676]
[1736529672163,0.00023072,94062.0,94061.0,0.35579193]
[1736529672475,0.00023072,94062.0,94061.0,0.37232531]
[1736529672682,0.00023072,94062.0,94061.0,0.33192676]
[1736529672883,0.00023072,94062.0,94061.0,0.11929976]
[1736529673966,0.00023072,94062.0,94061.0,0.10429976]
[1736529674174,0.212629,94061.0,94051.0,0.00872]
[1736529674382,0.00369693,94060.0,94056.0,0.425274]
[1736529674583,0.00369693,94060.0,94057.0,0.10536284]
[1736529674808,0.00023072,94062.0,94059.0,0.212631]
[1736529675015,0.00023072,94062.0,94061.0,0.009]
[1736529675251,0.00023072,94062.0,94061.0,0.10536275]
[1736529675907,0.00023072,94062.0,94061.0,0.10636275]
[1736529676085,0.00023072,94062.0,94061.0,0.10529976]
[1736529676585,0.00023072,94062.0,94061.0,0.001]
[1736529676944,0.00392894,94062.0,94061.0,0.001]
[1736529677250,0.00392894,94062.0,94061.0,0.10529976]
[1736529677568,0.00023072,94062.0,94061.0,0.10529976]
[1736529678392,0.00023072,94062.0,94061.0,0.11536277]
[1736529678606,0.00023072,94062.0,94061.0,0.11436277]
[1736529678807,0.00023072,94062.0,94061.0,0.10536277]
[1736529679018,0.00023072,94062.0,94061.0,0.11536277]
[1736529679419,0.00023072,94062.0,94061.0,0.10836277]
[1736529679667,0.00023072,94062.0,94061.0,1.60536277]
[1736529679841,0.00023072,94062.0,94061.0,1.61529976]
[1736529680424,0.00023072,94062.0,94061.0,1.61329976]
[1736529680631,0.00023072,94062.0,94061.0,1.98709976]
[1736529680833,0.00023072,94062.0,94061.0,2.11509902]
[1736529681039,0.00023072,94062.0,94061.0,2.10609902]
[1736529681453,0.212493,94121.0,94099.0,0.212542]
[1736529681674,0.212484,94125.0,94099.0,0.40246176]
[1736529681675,0.00057045,94100.0,94099.0,0.40246176]
[1736529682908,0.212437,94146.0,94110.0,0.212516]
[1736529683120,0.00023071,94132.0,94116.0,0.10429976]
[1736529683334,0.00023071,94132.0,94111.0,0.00106225]
[1736529683335,0.00023071,94132.0,94129.0,0.212474]
[1736529683556,0.00023071,94132.0,94131.0,0.212469]
[1736529683754,0.00023071,94132.0,94131.0,0.31676876]
[1736529684166,0.00023071,94132.0,94131.0,0.41676876]
[1736529684388,8.52e-05,94138.0,94137.0,0.09999926]
[1736529684593,0.01057326,94183.0,94160.0,0.1]
[1736529684819,0.212291,94211.0,94173.0,0.1]
[1736529685017,0.00056996,94195.0,94194.0,0.212327]
[1736529685220,0.01133318,94195.0,94194.0,0.31662676]
[1736529685418,0.01133318,94195.0,94194.0,1.82534676]
[1736529685617,0.004254,94222.0,94194.0,1.82534676]
[1736529685618,0.00405418,94222.0,94203.0,0.1]
[1736529685820,0.01055312,94222.0,94212.0,0.10429976]
[1736529686115,0.00014542,94222.0,94221.0,0.212266]
[1736529686312,0.00014542,94222.0,94215.0,0.21228]
[1736529686313,0.212266,94221.0,94187.0,0.1]
[1736529686497,0.00014542,94222.0,94206.0,0.2123]
[1736529686698,0.00014542,94222.0,94207.0,0.10429976]
[1736529686906,5.236e-05,94222.0,94208.0,0.212296]
[1736529687115,5.236e-05,94222.0,94209.0,0.105361]
[1736529687426,5.236e-05,94222.0,94221.0,0.009]
[1736529687606,5.236e-05,94222.0,94196.0,0.212322]